fUSD/lending_fUSD_20250216
["ID","MTS","AMOUNT","RATE_DAILY","PERIOD"]
[353293690,1739741477178,-1325.8,0.00011287,2]
[353293691,1739741477188,-500.0,0.00011287,2]
[353293692,1739741477198,-510.35,0.00011287,2]
[353293693,1739741477208,-500.0,0.00011287,2]
[353293694,1739741477218,-704.5,0.00011287,2]
[353293695,1739741477228,-1496.14,0.00011287,2]
[353293696,1739741477239,-1692.5,0.00011287,2]
[353293697,1739741477249,-500.0,0.00011287,2]
[353293698,1739741477258,-500.0,0.00011287,2]
[353293699,1739741477267,-500.0,0.00011287,2]
[353293700,1739741477277,-718.51,0.00011287,2]
[353293701,1739741477286,-500.0,0.00011287,2]
[353293702,1739741477296,-1162.05,0.00011287,2]
[353293703,1739741477307,-500.0,0.00011287,2]
[353293704,1739741477316,-1103.47,0.00011287,2]
[353293705,1739741477326,-2358.86,0.00011287,2]
[353293706,1739741477335,-1003.73,0.00011287,2]
[353293707,1739741477345,-659.76,0.00011287,2]
[353293708,1739741477356,-500.0,0.00011287,2]
[353293709,1739741477366,-1002.24,0.00011287,2]
[353293710,1739741477376,-500.0,0.00011287,2]
[353293711,1739741477386,-500.0,0.00011287,2]
[353293712,1739741477395,-1088.77,0.00011287,2]
[353293713,1739741477405,-872.82,0.00011287,2]
[353293714,1739741477414,-536.83,0.00011287,2]
[353293715,1739741477425,-988.81,0.00011287,2]
[353293716,1739741477435,-704.63,0.00011287,2]
[353293717,1739741477444,-1399.83,0.00011287,2]
[353293718,1739741477454,-151.0,0.00011287,2]
[353293719,1739741477464,-889.49,0.00011287,2]
[353293720,1739741477473,-1082.81,0.00011287,2]
[353293721,1739741477483,-1230.14,0.00011287,2]
[353293722,1739741477492,-1067.19,0.00011287,2]
[353293723,1739741477502,-500.0,0.00011287,2]
[353293724,1739741477511,-802.79,0.00011287,2]
[353293725,1739741477522,-650.49,0.00011287,2]
[353293726,1739741477532,-500.0,0.00011287,2]
[353293727,1739741477545,-610.44,0.00011287,2]
[353293728,1739741477555,-1953.73,0.00011287,2]
[353293729,1739741477564,-1787.1,0.00011287,2]
[353293730,1739741477573,-1000.0,0.00011287,2]
[353293731,1739741477583,-1567.15,0.00011287,2]
[353293732,1739741477592,-500.0,0.00011287,2]
[353293733,1739741477603,-400.71,0.00011287,2]
[353293734,1739741477613,-594.83,0.00011287,2]
[353293735,1739741477621,-769.34,0.00011287,2]
[353293736,1739741477790,-1266.93,0.00011287,2]
[353293737,1739741477801,-1537.32,0.00011287,2]
[353293738,1739741477811,-500.0,0.00011287,2]
[353293739,1739741477821,-1617.88,0.00011287,2]
[353293740,1739741477831,-500.0,0.00011287,2]
[353293741,1739741477840,-500.0,0.00011287,2]
[353293742,1739741477850,-880.55,0.00011287,2]
[353293743,1739741477859,-2377.59,0.00011287,2]
[353293744,1739741477868,-500.0,0.00011287,2]
[353293745,1739741477878,-500.0,0.00011287,2]
[353293746,1739741477887,-831.51,0.00011287,2]
[353293747,1739741477896,-925.36,0.00011287,2]
[353293748,1739741477906,-500.0,0.00011287,2]
[353293749,1739741477915,-1289.05423236,0.00011287,2]
[353293750,1739741478841,-500.0,0.00010958,2]
[353293751,1739741478852,-500.0,0.00010958,2]
[353293752,1739741478862,-222.17780059,0.00010958,2]
[353293753,1739741815953,500.0,0.0002,120]
[353293754,1739741816195,500.0,0.0002,120]
[353293755,1739741816491,500.0,0.0002,120]
[353293756,1739741816752,261.84,0.0002,120]
[353293767,1739742146034,551.95,8.219e-05,2]
[353293768,1739742267298,572.87,0.0002,120]
[353293769,1739742335284,-1000.0,9.999e-05,2]
[353293770,1739742335308,-1000.0,9.999e-05,2]
[353293771,1739742335330,-693.9123177,9.999e-05,2]
[353293772,1739742335351,-550.0,0.0001,2]
[353293773,1739742335374,-1000.0,0.0001027,2]
[353293774,1739742335395,-542.27,0.00010297,2]
[353293775,1739742335417,-250.0,0.00010306,2]
[353293776,1739742335439,-167.57,0.00010342,2]
[353293777,1739742335461,-204.35960509,0.00010356,2]
[353293778,1739742335484,-150.00000001,0.00010356,2]
[353293779,1739742335506,-1500.0,0.0001036,2]
[353293780,1739742335528,-551.95,0.00010483,2]
[353293781,1739742428932,500.0,0.0002,120]
[353293782,1739742429177,500.0,0.0002,120]
[353293783,1739742429452,500.0,0.0002,120]
[353293784,1739742429872,500.0,0.0002,120]
[353293785,1739742430000,349.12,0.0002,120]
[353293795,1739742522928,800.0,8.836e-05,2]
[353293796,1739742526462,197.11,0.0001009,2]
[353293797,1739742536635,2566.4922,8.256e-05,2]
[353293802,1739742572386,1073.59,0.00010161,2]
[353293803,1739742592801,2685.1741,8.973e-05,2]
[353293812,1739742632342,-166.66666668,0.00010758,2]
[353293813,1739742632352,-200.0,0.00010808,2]
[353293814,1739742632362,-166.66666666,0.00010808,2]
[353293815,1739742632371,-594.13825676,0.00010858,2]
[353293816,1739742632381,-166.66666666,0.00010858,2]
[353293817,1739742632390,-1000.0,0.00010957,2]
[353293818,1739742632399,-150.0,0.00010957,2]
[353293819,1739742632409,-300.0,0.00010957,2]
[353293820,1739742632419,-501.35106964,0.00010958,2]
[353293821,1739742632428,-500.0,0.00010958,2]
[353293822,1739742632438,-221.0456427,0.00010958,2]
[353293823,1739742632448,-500.0,0.00010958,2]
[353293824,1739742632457,-502.23520174,0.00010958,2]
[353293825,1739742632466,-500.0,0.00010958,2]
[353293826,1739742632476,-510.89973778,0.00010958,2]
[353293827,1739742632485,-201.90276561,0.00010958,2]
[353293828,1739742632495,-200.98675695,0.00010958,2]
[353293829,1739742632505,-500.0,0.00010958,2]
[353293830,1739742632514,-500.0,0.00010958,2]
[353293831,1739742632524,-500.0,0.00010958,2]
[353293832,1739742632534,-500.0,0.00010958,2]
[353293833,1739742632544,-500.0,0.00010958,2]
[353293834,1739742632554,-500.0,0.00010958,2]
[353293835,1739742632564,-271.86391101,0.00010958,2]
[353293836,1739742632573,-500.80335089,0.00010958,2]
[353293837,1739742632583,-500.0,0.00010958,2]
[353293838,1739742632592,-500.0,0.00010958,2]
[353293839,1739742632601,-500.0,0.00010958,2]
[353293840,1739742632613,-235.75800333,0.00010958,2]
[353293841,1739742632622,-500.0,0.00010958,2]
[353293842,1739742632632,-500.0,0.00010958,2]
[353293843,1739742632642,-500.0,0.00010958,2]
[353293844,1739742632652,-500.0,0.00010958,2]
[353293845,1739742632662,-500.53192226,0.00010958,2]
[353293846,1739742632672,-527.42616887,0.00010958,2]
[353293847,1739742632682,-553.7148991,0.00010958,2]
[353293848,1739742632691,-500.0,0.00010958,2]
[353293849,1739742632701,-561.33134651,0.00010958,2]
[353293850,1739742632710,-407.69639398,0.00010958,2]
[353293851,1739742632719,-500.0,0.00010958,2]
[353293852,1739742632728,-500.0,0.00010958,2]
[353293853,1739742632738,-500.0,0.00010958,2]
[353293854,1739742632748,-500.0,0.00010958,2]
[353293855,1739742632758,-500.0,0.00010958,2]
[353293856,1739742632767,-500.0,0.00010958,2]
[353293858,1739742632777,-513.14534012,0.00010958,2]
[353293860,1739742632786,-500.0,0.00010958,2]
[353293862,1739742632796,-500.0,0.00010958,2]
[353293863,1739742632805,-500.0,0.00010958,2]
[353293865,1739742632814,-500.0,0.00010958,2]
[353293867,1739742632823,-500.0,0.00010958,2]
[353293869,1739742632832,-500.0,0.00010958,2]
[353293871,1739742632842,-612.76,0.00010958,2]
[353293873,1739742632851,-500.0,0.00010958,2]
[353293875,1739742632861,-500.0,0.00010958,2]
[353293877,1739742632870,-362.40923275,0.00010958,2]
[353293914,1739742633223,-137.59076725,0.00010958,2]
[353293916,1739742633233,-500.0,0.00010958,2]
[353293917,1739742633242,-500.0,0.00010958,2]
[353293919,1739742633252,-500.0,0.00010958,2]
[353293921,1739742633261,-500.0,0.00010958,2]
[353293923,1739742633270,-500.0,0.00010958,2]
[353293925,1739742633280,-552.42289723,0.00010958,2]
[353293927,1739742633289,-500.0,0.00010958,2]
[353293929,1739742633299,-500.0,0.00010958,2]
[353293931,1739742633308,-500.0,0.00010958,2]
[353293933,1739742633318,-500.0,0.00010958,2]
[353293935,1739742633328,-223.43219069,0.00010958,2]
[353293937,1739742633337,-500.0,0.00010958,2]
[353293939,1739742633346,-186.55414473,0.00010958,2]
[353293940,1739742633359,-295.75975326,0.00010958,2]
[353293941,1739742633368,-500.0,0.00010958,2]
[353293942,1739742633377,-500.0,0.00010958,2]
[353293943,1739742633387,-500.0,0.00010958,2]
[353293944,1739742633396,-500.0,0.00010958,2]
[353293945,1739742633405,-534.94322166,0.00010958,2]
[353293946,1739742633414,-500.0,0.00010958,2]
[353293947,1739742633423,-500.0,0.00010958,2]
[353293948,1739742633432,-500.0,0.00010958,2]
[353293949,1739742633441,-500.0,0.00010958,2]
[353293950,1739742633450,-500.0,0.00010958,2]
[353293951,1739742633459,-500.0,0.00010958,2]
[353293952,1739742633469,-49.29702508,0.00010958,2]
[353293953,1739742633481,-450.70297492,0.00010958,2]
[353293954,1739742633491,-500.0,0.00010958,2]
[353293955,1739742633500,-500.0,0.00010958,2]
[353293956,1739742633509,-99.29702508,0.00010958,2]
[353293960,1739742633535,-400.70297492,0.00010958,2]
[353293961,1739742633544,-500.0,0.00010958,2]
[353293963,1739742633553,-500.0,0.00010958,2]
[353293965,1739742633563,-500.0,0.00010958,2]
[353293967,1739742633572,-500.0,0.00010958,2]
[353293969,1739742633581,-500.0,0.00010958,2]
[353293971,1739742633591,-500.0,0.00010958,2]
[353293973,1739742633600,-500.0,0.00010958,2]
[353293975,1739742633609,-500.0,0.00010958,2]
[353293977,1739742633619,-500.0,0.00010958,2]
[353293979,1739742633628,-500.0,0.00010958,2]
[353293981,1739742633639,-500.0,0.00010958,2]
[353293983,1739742633648,-500.0,0.00010958,2]
[353293985,1739742633658,-500.0,0.00010958,2]
[353293987,1739742633667,-500.0,0.00010958,2]
[353293989,1739742633676,-500.0,0.00010958,2]
[353293991,1739742633685,-500.0,0.00010958,2]
[353293993,1739742633695,-118.64551366,0.00010958,2]
[353293995,1739742633707,-381.35448634,0.00010958,2]
[353293997,1739742633717,-500.0,0.00010958,2]
[353293999,1739742633726,-500.0,0.00010958,2]
[353294001,1739742633736,-500.0,0.00010958,2]
[353294003,1739742633745,-500.0,0.00010958,2]
[353294005,1739742633754,-500.0,0.00010958,2]
[353294007,1739742633763,-219.28250991,0.00010958,2]
[353294009,1739742633773,-500.0,0.00010958,2]
[353294011,1739742633782,-500.0,0.00010958,2]
[353294013,1739742633792,-500.0,0.00010958,2]
[353294015,1739742633801,-500.0,0.00010958,2]
[353294017,1739742633810,-500.0,0.00010958,2]
[353294019,1739742633820,-500.0,0.00010958,2]
[353294022,1739742633830,-500.0,0.00010958,2]
[353294024,1739742633840,-500.0,0.00010958,2]
[353294025,1739742633849,-500.0,0.00010958,2]
[353294027,1739742633858,-500.0,0.00010958,2]
[353294029,1739742633867,-500.0,0.00010958,2]
[353294031,1739742633876,-500.0,0.00010958,2]
[353294057,1739742634125,-500.0,0.00010958,2]
[353294060,1739742634138,-451.03817689,0.00010958,2]
[353294062,1739742634151,-48.96182311,0.00010958,2]
[353294064,1739742634161,-233.76100501,0.00010958,2]
[353294066,1739742634174,-266.23899499,0.00010958,2]
[353294068,1739742634184,-473.60993232,0.00010958,2]
[353294070,1739742634193,-500.0,0.00010958,2]
[353294072,1739742634202,-500.0,0.00010958,2]
[353294074,1739742634212,-582.98,0.00010958,2]
[353294076,1739742634221,-500.0,0.00010958,2]
[353294078,1739742634231,-288.46477079,0.00010958,2]
[353294080,1739742634240,-500.0,0.00010958,2]
[353294082,1739742634250,-500.0,0.00010958,2]
[353294084,1739742634260,-500.0,0.00010958,2]
[353294086,1739742634269,-374.57493089,0.00010958,2]
[353294088,1739742634279,-500.0,0.00010958,2]
[353294090,1739742634289,-500.0,0.00010958,2]
[353294092,1739742634299,-500.0,0.00010958,2]
[353294094,1739742634308,-500.0,0.00010958,2]
[353294096,1739742634318,-500.0,0.00010958,2]
[353294098,1739742634328,-566.65,0.00010958,2]
[353294100,1739742634338,-500.0,0.00010958,2]
[353294102,1739742634348,-500.0,0.00010958,2]
[353294104,1739742634357,-588.54,0.00010958,2]
[353294106,1739742634367,-500.0,0.00010958,2]
[353294108,1739742634376,-500.0,0.00010958,2]
[353294110,1739742634388,-527.23,0.00010958,2]
[353294112,1739742634398,-500.0,0.00010958,2]
[353294114,1739742634408,-500.0,0.00010958,2]
[353294116,1739742634418,-500.0,0.00010958,2]
[353294118,1739742634429,-500.0,0.00010958,2]
[353294120,1739742634439,-500.0,0.00010958,2]
[353294122,1739742634449,-369.11725619,0.00010958,2]
[353294124,1739742634458,-500.0,0.00010958,2]
[353294126,1739742634468,-500.0,0.00010958,2]
[353294128,1739742634477,-500.0,0.00010958,2]
[353294130,1739742634487,-500.0,0.00010958,2]
[353294132,1739742634496,-500.0,0.00010958,2]
[353294134,1739742634505,-500.0,0.00010958,2]
[353294136,1739742634515,-600.0,0.00010958,2]
[353294138,1739742634525,-500.0,0.00010958,2]
[353294140,1739742634535,-500.0,0.00010958,2]
[353294142,1739742634544,-500.0,0.00010958,2]
[353294144,1739742634554,-500.0,0.00010958,2]
[353294146,1739742634567,-773.53,0.00010958,2]
[353294148,1739742634577,-500.0,0.00010958,2]
[353294150,1739742634586,-500.92161284,0.00010958,2]
[353294152,1739742634595,-629.01,0.00010958,2]
[353294154,1739742634605,-500.0,0.00010958,2]
[353294155,1739742634614,-500.0,0.00010958,2]
[353294157,1739742634623,-500.0,0.00010958,2]
[353294160,1739742634634,-500.0,0.00010958,2]
[353294161,1739742634643,-500.0,0.00010958,2]
[353294164,1739742634652,-500.0,0.00010958,2]
[353294165,1739742634661,-500.0,0.00010958,2]
[353294167,1739742634670,-545.39,0.00010958,2]
[353294169,1739742634679,-500.0,0.00010958,2]
[353294172,1739742634689,-581.66,0.00010958,2]
[353294173,1739742634698,-500.0,0.00010958,2]
[353294175,1739742634707,-500.0,0.00010958,2]
[353294177,1739742634717,-500.0,0.00010958,2]
[353294179,1739742634727,-500.0,0.00010958,2]
[353294181,1739742634736,-500.0,0.00010958,2]
[353294183,1739742634745,-500.0,0.00010958,2]
[353294185,1739742634754,-525.55,0.00010958,2]
[353294187,1739742634763,-500.0,0.00010958,2]
[353294189,1739742634772,-500.0,0.00010958,2]
[353294191,1739742634782,-507.31,0.00010958,2]
[353294193,1739742634791,-500.0,0.00010958,2]
[353294195,1739742634800,-500.0,0.00010958,2]
[353294197,1739742634809,-500.0,0.00010958,2]
[353294199,1739742634818,-500.0,0.00010958,2]
[353294201,1739742634827,-804.84,0.00010958,2]
[353294203,1739742634836,-500.0,0.00010958,2]
[353294205,1739742634846,-331.75304231,0.00010958,2]
[353294207,1739742634855,-500.0,0.00010958,2]
[353294209,1739742634864,-556.74258911,0.00010958,2]
[353294211,1739742634873,-500.0,0.00010958,2]
[353294213,1739742634882,-500.0,0.00010958,2]
[353294215,1739742634891,-982.12,0.00010958,2]
[353294217,1739742634900,-500.0,0.00010958,2]
[353294219,1739742634910,-500.81242321,0.00010958,2]
[353294221,1739742634919,-500.0,0.00010958,2]
[353294223,1739742634928,-500.0,0.00010958,2]
[353294225,1739742634937,-500.0,0.00010958,2]
[353294227,1739742634947,-500.0,0.00010958,2]
[353294229,1739742634956,-501.68864989,0.00010958,2]
[353294231,1739742634965,-500.0,0.00010958,2]
[353294233,1739742634974,-500.0,0.00010958,2]
[353294235,1739742634983,-500.0,0.00010958,2]
[353294237,1739742634992,-500.0,0.00010958,2]
[353294239,1739742635002,-500.0,0.00010958,2]
[353294241,1739742635012,-500.0,0.00010958,2]
[353294243,1739742635021,-565.07,0.00010958,2]
[353294245,1739742635030,-500.0,0.00010958,2]
[353294247,1739742635041,-500.0,0.00010958,2]
[353294249,1739742635051,-1208.65,0.00010958,2]
[353294251,1739742635061,-500.0,0.00010958,2]
[353294253,1739742635071,-500.0,0.00010958,2]
[353294255,1739742635082,-500.0,0.00010958,2]
[353294257,1739742635094,-500.0,0.00010958,2]
[353294259,1739742635104,-501.63989044,0.00010958,2]
[353294261,1739742635114,-500.0,0.00010958,2]
[353294263,1739742635124,-855.1,0.00010958,2]
[353294265,1739742635135,-597.45,0.00010958,2]
[353294267,1739742635144,-500.0,0.00010958,2]
[353294269,1739742635153,-500.0,0.00010958,2]
[353294271,1739742635163,-1108.48,0.00010958,2]
[353294273,1739742635174,-570.47,0.00010958,2]
[353294275,1739742635184,-500.0,0.00010958,2]
[353294277,1739742635194,-498.54699344,0.00010958,2]
[353294279,1739742635203,-500.0,0.00010958,2]
[353294281,1739742635212,-1106.27,0.00010958,2]
[353294283,1739742635222,-464.28326518,0.00010958,2]
[353294285,1739742635231,-500.0,0.00010958,2]
[353294287,1739742635240,-500.0,0.00010958,2]
[353294289,1739742635249,-500.0,0.00010958,2]
[353294291,1739742635259,-500.0,0.00010958,2]
[353294293,1739742635268,-877.71,0.00010958,2]
[353294295,1739742635277,-500.0,0.00010958,2]
[353294297,1739742635286,-156.075971,0.00010958,2]
[353294299,1739742635295,-500.0,0.00010958,2]
[353294301,1739742635304,-500.0,0.00010958,2]
[353294303,1739742635314,-726.09,0.00010958,2]
[353294305,1739742635323,-500.0,0.00010958,2]
[353294307,1739742635333,-541.85,0.00010958,2]
[353294309,1739742635342,-500.0,0.00010958,2]
[353294311,1739742635351,-1071.49,0.00010958,2]
[353294313,1739742635360,-500.0,0.00010958,2]
[353294315,1739742635369,-749.73,0.00010958,2]
[353294317,1739742635378,-767.54,0.00010958,2]
[353294319,1739742635391,-726.53,0.00010958,2]
[353294321,1739742635400,-500.0,0.00010958,2]
[353294323,1739742635409,-500.0,0.00010958,2]
[353294325,1739742635419,-500.0,0.00010958,2]
[353294327,1739742635428,-500.0,0.00010958,2]
[353294329,1739742635437,-684.820222,0.00010958,2]
[353294331,1739742635446,-580.47,0.00010958,2]
[353294333,1739742635455,-587.22,0.00010958,2]
[353294335,1739742635464,-500.0,0.00010958,2]
[353294337,1739742635474,-500.0,0.00010958,2]
[353294339,1739742635483,-500.0,0.00010958,2]
[353294341,1739742635492,-500.0,0.00010958,2]
[353294343,1739742635501,-500.0,0.00010958,2]
[353294345,1739742635510,-500.0,0.00010958,2]
[353294347,1739742635520,-500.0,0.00010958,2]
[353294349,1739742635529,-500.0,0.00010958,2]
[353294351,1739742635539,-987.579306,0.00010958,2]
[353294352,1739742635548,-500.0,0.00010958,2]
[353294355,1739742635558,-500.0,0.00010958,2]
[353294356,1739742635567,-500.0,0.00010958,2]
[353294358,1739742635577,-500.0,0.00010958,2]
[353294360,1739742635587,-500.0,0.00010958,2]
[353294362,1739742635596,-161.281649,0.00010958,2]
[353294365,1739742635606,-500.0,0.00010958,2]
[353294366,1739742635616,-500.0,0.00010958,2]
[353294368,1739742635625,-500.0,0.00010958,2]
[353294370,1739742635637,-500.0,0.00010958,2]
[353294372,1739742635646,-500.0,0.00010958,2]
[353294374,1739742635655,-500.0,0.00010958,2]
[353294376,1739742635665,-500.0,0.00010958,2]
[353294378,1739742635674,-500.0,0.00010958,2]
[353294380,1739742635683,-532.63,0.00010958,2]
[353294382,1739742635693,-500.0,0.00010958,2]
[353294384,1739742635703,-500.0,0.00010958,2]
[353294386,1739742635712,-518.7,0.00010958,2]
[353294388,1739742635721,-500.0,0.00010958,2]
[353294390,1739742635731,-500.0,0.00010958,2]
[353294392,1739742635740,-508.32,0.00010958,2]
[353294394,1739742635750,-500.0,0.00010958,2]
[353294396,1739742635759,-500.0,0.00010958,2]
[353294398,1739742635768,-500.0,0.00010958,2]
[353294400,1739742635777,-1320.12,0.00010958,2]
[353294402,1739742635786,-500.0,0.00010958,2]
[353294404,1739742635796,-500.0,0.00010958,2]
[353294406,1739742635805,-500.0,0.00010958,2]
[353294408,1739742635815,-610.47,0.00010958,2]
[353294410,1739742635825,-500.0,0.00010958,2]
[353294412,1739742635834,-500.0,0.00010958,2]
[353294414,1739742635843,-500.0,0.00010958,2]
[353294416,1739742635852,-603.88,0.00010958,2]
[353294418,1739742635861,-500.0,0.00010958,2]
[353294420,1739742635871,-930.63,0.00010958,2]
[353294422,1739742635880,-836.2,0.00010958,2]
[353294424,1739742635891,-500.0,0.00010958,2]
[353294426,1739742635901,-500.0,0.00010958,2]
[353294428,1739742635910,-712.78,0.00010958,2]
[353294430,1739742635920,-500.0,0.00010958,2]
[353294432,1739742635931,-500.0,0.00010958,2]
[353294434,1739742635940,-500.0,0.00010958,2]
[353294436,1739742635950,-500.0,0.00010958,2]
[353294438,1739742635959,-500.0,0.00010958,2]
[353294440,1739742635970,-500.0,0.00010958,2]
[353294442,1739742635980,-999.98,0.00010958,2]
[353294444,1739742635989,-500.0,0.00010958,2]
[353294446,1739742635998,-843.76,0.00010958,2]
[353294448,1739742636008,-863.25,0.00010958,2]
[353294450,1739742636017,-500.0,0.00010958,2]
[353294452,1739742636026,-1040.19,0.00010958,2]
[353294454,1739742636035,-500.0,0.00010958,2]
[353294456,1739742636045,-841.54,0.00010958,2]
[353294458,1739742636054,-500.0,0.00010958,2]
[353294460,1739742636063,-500.0,0.00010958,2]
[353294462,1739742636073,-565.47,0.00010958,2]
[353294464,1739742636087,-854.5,0.00010958,2]
[353294466,1739742636097,-500.0,0.00010958,2]
[353294468,1739742636106,-500.0,0.00010958,2]
[353294470,1739742636116,-500.0,0.00010958,2]
[353294472,1739742636126,-170.390533,0.00010958,2]
[353294474,1739742636135,-500.0,0.00010958,2]
[353294476,1739742636145,-839.28,0.00010958,2]
[353294478,1739742636155,-500.0,0.00010958,2]
[353294480,1739742636165,-500.0,0.00010958,2]
[353294482,1739742636174,-500.0,0.00010958,2]
[353294484,1739742636183,-534.61793309,0.00010958,2]
[353294486,1739742636192,-500.0,0.00010958,2]
[353294487,1739742636201,-500.0,0.00010958,2]
[353294488,1739742636210,-503.80749561,0.00010958,2]
[353294489,1739742636219,-1102.11,0.00010958,2]
[353294490,1739742636228,-500.0,0.00010958,2]
[353294491,1739742636237,-500.0,0.00010958,2]
[353294492,1739742636246,-500.0,0.00010958,2]
[353294493,1739742636256,-1120.48,0.00010958,2]
[353294494,1739742636265,-171.750362,0.00010958,2]
[353294495,1739742636274,-500.0,0.00010958,2]
[353294496,1739742636283,-500.0,0.00010958,2]
[353294497,1739742636291,-666.2,0.00010958,2]
[353294498,1739742636301,-500.0,0.00010958,2]
[353294499,1739742636310,-500.0,0.00010958,2]
[353294501,1739742636319,-500.0,0.00010958,2]
[353294503,1739742636329,-500.0,0.00010958,2]
[353294505,1739742636338,-701.22,0.00010958,2]
[353294507,1739742636348,-500.0,0.00010958,2]
[353294509,1739742636357,-500.0,0.00010958,2]
[353294511,1739742636366,-595.61918706,0.00010958,2]
[353294513,1739742636376,-500.0,0.00010958,2]
[353294515,1739742636385,-500.0,0.00010958,2]
[353294517,1739742636395,-500.0,0.00010958,2]
[353294519,1739742636404,-500.0,0.00010958,2]
[353294521,1739742636413,-500.0,0.00010958,2]
[353294523,1739742636423,-500.0,0.00010958,2]
[353294525,1739742636433,-500.0,0.00010958,2]
[353294527,1739742636442,-500.0,0.00010958,2]
[353294529,1739742636452,-503.5064233,0.00010958,2]
[353294531,1739742636462,-500.0,0.00010958,2]
[353294533,1739742636471,-500.0,0.00010958,2]
[353294535,1739742636481,-500.0,0.00010958,2]
[353294537,1739742636490,-730.12,0.00010958,2]
[353294539,1739742636499,-500.0,0.00010958,2]
[353294541,1739742636509,-500.0,0.00010958,2]
[353294543,1739742636518,-500.0,0.00010958,2]
[353294545,1739742636528,-500.0,0.00010958,2]
[353294547,1739742636537,-500.0,0.00010958,2]
[353294549,1739742636547,-500.0,0.00010958,2]
[353294551,1739742636556,-500.0,0.00010958,2]
[353294553,1739742636567,-959.53,0.00010958,2]
[353294555,1739742636576,-691.18,0.00010958,2]
[353294557,1739742636585,-500.0,0.00010958,2]
[353294559,1739742636595,-500.0,0.00010958,2]
[353294561,1739742636604,-500.0,0.00010958,2]
[353294563,1739742636615,-500.0,0.00010958,2]
[353294565,1739742636623,-500.0,0.00010958,2]
[353294567,1739742636633,-500.0,0.00010958,2]
[353294569,1739742636642,-1279.74,0.00010958,2]
[353294571,1739742636652,-500.0,0.00010958,2]
[353294573,1739742636662,-500.0,0.00010958,2]
[353294575,1739742636672,-500.0,0.00010958,2]
[353294577,1739742636681,-500.0,0.00010958,2]
[353294580,1739742636691,-500.0,0.00010958,2]
[353294582,1739742636701,-500.0,0.00010958,2]
[353294584,1739742636711,-500.0,0.00010958,2]
[353294586,1739742636720,-500.0,0.00010958,2]
[353294588,1739742636730,-500.0,0.00010958,2]
[353294589,1739742636740,-1064.34,0.00010958,2]
[353294592,1739742636750,-500.0,0.00010958,2]
[353294594,1739742636759,-684.81,0.00010958,2]
[353294596,1739742636769,-500.0,0.00010958,2]
[353294598,1739742636779,-500.0,0.00010958,2]
[353294600,1739742636788,-500.0,0.00010958,2]
[353294602,1739742636797,-500.0,0.00010958,2]
[353294603,1739742636807,-500.0,0.00010958,2]
[353294606,1739742636817,-500.0,0.00010958,2]
[353294607,1739742636825,-500.0,0.00010958,2]
[353294610,1739742636835,-500.0,0.00010958,2]
[353294611,1739742636844,-500.0,0.00010958,2]